lending/lending_fUSD_20240411
["ID","MTS","AMOUNT","RATE_DAILY","PERIOD"]
[322158183,1712857844930,-500.0,0.00030136,2]
[322158184,1712857844941,-500.0,0.00030136,2]
[322158185,1712857844951,-500.0,0.00030136,2]
[322158186,1712857844963,-500.0,0.00030136,2]
[322158187,1712857844974,-500.0,0.00030136,2]
[322158188,1712857844984,-2772.71,0.00030136,2]
[322158189,1712857844994,-2421.36,0.00030136,2]
[322158190,1712857845003,-500.0,0.00030136,2]
[322158191,1712857845013,-1717.55,0.00030136,2]
[322158192,1712857845023,-2353.59,0.00030136,2]
[322158193,1712857845033,-863.52,0.00030136,2]
[322158194,1712857845042,-3098.52,0.00030136,2]
[322158195,1712857845052,-3105.41,0.00030136,2]
[322158196,1712857845061,-500.0,0.00030136,2]
[322158197,1712857845071,-500.0,0.00030136,2]
[322158198,1712857845080,-500.0,0.00030136,2]
[322158199,1712857845090,-500.0,0.00030136,2]
[322158200,1712857845100,-8046.15,0.00030136,2]
[322158201,1712857845110,-500.0,0.00030136,2]
[322158202,1712857845121,-3327.6,0.00030136,2]
[322158203,1712857845130,-687.03,0.00030136,2]
[322158204,1712857845140,-3894.68,0.00030136,2]
[322158205,1712857845149,-2164.08,0.00030136,2]
[322158206,1712857845158,-500.0,0.00030136,2]
[322158207,1712857845169,-500.0,0.00030136,2]
[322158208,1712857845181,-500.0,0.00030136,2]
[322158209,1712857845191,-1459.88,0.00030136,2]
[322158210,1712857845202,-500.0,0.00030136,2]
[322158211,1712857845213,-500.0,0.00030136,2]
[322158212,1712857845224,-7478.03,0.00030136,2]
[322158213,1712857845234,-500.0,0.00030136,2]
[322158214,1712857845245,-2798.66,0.00030136,2]
[322158215,1712857845256,-500.0,0.00030136,2]
[322158216,1712857845266,-500.0,0.00030136,2]
[322158217,1712857845276,-1117.67,0.00030136,2]
[322158218,1712857845286,-3460.66,0.00030136,2]
[322158219,1712857845297,-3514.96,0.00030136,2]
[322158220,1712857845308,-8044.72,0.00030136,2]
[322158221,1712857845318,-500.0,0.00030136,2]
[322158222,1712857845327,-30541.42,0.00030136,2]
[322158223,1712857845337,-500.0,0.00030136,2]
[322158224,1712857845347,-500.0,0.00030136,2]
[322158225,1712857845357,-2472.11,0.00030136,2]
[322158226,1712857845366,-1035.96,0.00030136,2]
[322158227,1712857845375,-500.0,0.00030136,2]
[322158228,1712857845385,-536.92,0.00030136,2]
[322158229,1712857845394,-500.0,0.00030136,2]
[322158230,1712857845403,-500.0,0.00030136,2]
[322158231,1712857845413,-2407.51,0.00030136,2]
[322158232,1712857845423,-500.0,0.00030136,2]
[322158233,1712857845432,-1019.25,0.00030136,2]
[322158234,1712857845442,-1724.62,0.00030136,2]
[322158235,1712857845451,-1053.14,0.00030136,2]
[322158236,1712857845461,-500.0,0.00030136,2]
[322158237,1712857845470,-535.08757644,0.00030136,2]
[322158238,1712857845480,-500.0,0.00030136,2]
[322158239,1712857845490,-500.0,0.00030136,2]
[322158240,1712857845500,-566.57483973,0.00030136,2]
[322158241,1712857845510,-500.0,0.00030136,2]
[322158242,1712857845520,-500.0,0.00030136,2]
[322158243,1712857845529,-4473.12,0.00030136,2]
[322158244,1712857845539,-2948.79,0.00030136,2]
[322158245,1712857845549,-1368.09,0.00030136,2]
[322158246,1712857845559,-6833.69,0.00030136,2]
[322158247,1712857845569,-2270.8,0.00030136,2]
[322158248,1712857845579,-1889.96,0.00030136,2]
[322158249,1712857845589,-666.32,0.00030136,2]
[322158250,1712857845601,-4472.94,0.00030136,2]
[322158251,1712857845611,-530.68,0.00030136,2]
[322158252,1712857845622,-500.0,0.00030136,2]
[322158253,1712857845633,-2652.21,0.00030136,2]
[322158254,1712857845643,-1272.82,0.00030136,2]
[322158255,1712857845653,-500.0,0.00030136,2]
[322158256,1712857845747,-500.0,0.00030136,2]
[322158257,1712857845757,-1404.69,0.00030136,2]
[322158258,1712857845767,-500.0,0.00030136,2]
[322158259,1712857845781,-500.0,0.00030136,2]
[322158260,1712857845791,-500.0,0.00030136,2]
[322158261,1712857845802,-500.0,0.00030136,2]
[322158262,1712857845811,-500.0,0.00030136,2]
[322158263,1712857845821,-500.0,0.00030136,2]
[322158264,1712857845832,-500.0,0.00030136,2]
[322158265,1712857845841,-500.0,0.00030136,2]
[322158266,1712857845852,-500.0,0.00030136,2]
[322158267,1712857845863,-3716.97,0.00030136,2]
[322158268,1712857845873,-500.0,0.00030136,2]
[322158269,1712857845882,-500.0,0.00030136,2]
[322158270,1712857845891,-500.0,0.00030136,2]
[322158271,1712857845901,-560.31630542,0.00030136,2]
[322158272,1712857845910,-2127.17,0.00030136,2]
[322158273,1712857845919,-3878.06,0.00030136,2]
[322158274,1712857845928,-1403.59,0.00030136,2]
[322158275,1712857845940,-500.0,0.00030136,2]
[322158276,1712857845953,-3505.03,0.00030136,2]
[322158277,1712857845963,-500.0,0.00030136,2]
[322158278,1712857845974,-500.0,0.00030136,2]
[322158279,1712857845984,-500.0,0.00030136,2]
[322158280,1712857845994,-4592.17,0.00030136,2]
[322158281,1712857846003,-500.0,0.00030136,2]
[322158282,1712857846013,-867.84,0.00030136,2]
[322158283,1712857846023,-1201.54,0.00030136,2]
[322158284,1712857846033,-500.0,0.00030136,2]
[322158285,1712857846043,-7066.44,0.00030136,2]
[322158286,1712857846053,-2868.76,0.00030136,2]
[322158287,1712857846064,-786.61,0.00030136,2]
[322158288,1712857846075,-500.0,0.00030136,2]
[322158289,1712857846085,-3029.62,0.00030136,2]
[322158290,1712857846095,-500.0,0.00030136,2]
[322158291,1712857846105,-1124.64,0.00030136,2]
[322158292,1712857846115,-500.0,0.00030136,2]
[322158293,1712857846126,-631.61,0.00030136,2]
[322158294,1712857846135,-3545.8,0.00030136,2]
[322158295,1712857846145,-680.36,0.00030136,2]
[322158296,1712857846155,-500.0,0.00030136,2]
[322158297,1712857846166,-500.0,0.00030136,2]
[322158298,1712857846176,-2467.09,0.00030136,2]
[322158299,1712857846187,-4082.0,0.00030136,2]
[322158300,1712857846198,-784.09,0.00030136,2]
[322158301,1712857846209,-2028.97,0.00030136,2]
[322158302,1712857846220,-500.0,0.00030136,2]
[322158303,1712857846230,-12585.79,0.00030136,2]
[322158304,1712857846241,-2014.11,0.00030136,2]
[322158305,1712857846253,-1180.91,0.00030136,2]
[322158306,1712857846262,-1404.94,0.00030136,2]
[322158307,1712857846272,-500.0,0.00030136,2]
[322158308,1712857846282,-1555.64,0.00030136,2]
[322158309,1712857846291,-500.0,0.00030136,2]
[322158310,1712857846300,-527.31531261,0.00030136,2]
[322158311,1712857846310,-568.55,0.00030136,2]
[322158312,1712857846320,-652.03,0.00030136,2]
[322158313,1712857846330,-3104.75,0.00030136,2]
[322158314,1712857846339,-500.0,0.00030136,2]
[322158315,1712857846351,-1047.52,0.00030136,2]
[322158316,1712857846360,-2729.73,0.00030136,2]
[322158317,1712857846371,-500.0,0.00030136,2]
[322158318,1712857846381,-500.0,0.00030136,2]
[322158319,1712857846390,-3711.55,0.00030136,2]
[322158320,1712857846400,-766.96,0.00030136,2]
[322158321,1712857846409,-500.0,0.00030136,2]
[322158322,1712857846420,-819.88,0.00030136,2]
[322158323,1712857846430,-8583.47,0.00030136,2]
[322158324,1712857846439,-506.55,0.00030136,2]
[322158325,1712857846448,-622.93,0.00030136,2]
[322158326,1712857846457,-2415.75,0.00030136,2]
[322158327,1712857846466,-500.0,0.00030136,2]
[322158328,1712857846475,-277.11133044,0.00030136,2]
[322158329,1712857846485,-20315.2,0.00030136,2]
[322158330,1712857846494,-564.88199899,0.00030136,2]
[322158331,1712857846504,-500.0,0.00030136,2]
[322158332,1712857846513,-517.87,0.00030136,2]
[322158333,1712857846522,-2355.76,0.00030136,2]
[322158335,1712857846532,-4342.53,0.00030136,2]
[322158337,1712857846541,-1528.03,0.00030136,2]
[322158339,1712857846550,-3675.58,0.00030136,2]
[322158341,1712857846559,-500.0,0.00030136,2]
[322158343,1712857846568,-724.49,0.00030136,2]
[322158345,1712857846578,-2269.52,0.00030136,2]
[322158348,1712857846588,-511.4,0.00030136,2]
[322158350,1712857846600,-500.0,0.00030136,2]
[322158352,1712857846609,-500.0,0.00030136,2]
[322158354,1712857846618,-5551.76,0.00030136,2]
[322158356,1712857846628,-500.0,0.00030136,2]
[322158358,1712857846637,-7602.04,0.00030136,2]
[322158359,1712857846646,-4864.61,0.00030136,2]
[322158362,1712857846656,-7226.81,0.00030136,2]
[322158364,1712857846665,-500.0,0.00030136,2]
[322158366,1712857846675,-772.34,0.00030136,2]
[322158368,1712857846684,-500.0,0.00030136,2]
[322158370,1712857846699,-500.0,0.00030136,2]
[322158372,1712857846708,-500.0,0.00030136,2]
[322158374,1712857846717,-563.33275822,0.00030136,2]
[322158376,1712857846726,-1584.82,0.00030136,2]
[322158378,1712857846735,-500.0,0.00030136,2]
[322158379,1712857846744,-5149.98,0.00030136,2]
[322158380,1712857846753,-5682.37,0.00030136,2]
[322158381,1712857846762,-585.47,0.00030136,2]
[322158382,1712857846772,-1393.28,0.00030136,2]
[322158383,1712857846783,-500.0,0.00030136,2]
[322158384,1712857846792,-511.51,0.00030136,2]
[322158385,1712857846801,-8772.46,0.00030136,2]
[322158386,1712857846810,-500.0,0.00030136,2]
[322158387,1712857846822,-500.0,0.00030136,2]
[322158388,1712857846830,-2119.78,0.00030136,2]
[322158389,1712857846839,-23702.74,0.00030136,2]
[322158390,1712857846849,-500.0,0.00030136,2]
[322158391,1712857846859,-500.0,0.00030136,2]
[322158392,1712857846869,-1614.72,0.00030136,2]
[322158393,1712857846878,-500.0,0.00030136,2]
[322158394,1712857846887,-500.0,0.00030136,2]
[322158395,1712857846896,-566.31,0.00030136,2]
[322158396,1712857846905,-22109.73,0.00030136,2]
[322158397,1712857846914,-10570.79,0.00030136,2]
[322158398,1712857846923,-807.54,0.00030136,2]
[322158399,1712857846932,-8948.37,0.00030136,2]
[322158400,1712857846941,-500.0,0.00030136,2]
[322158401,1712857846951,-500.0,0.00030136,2]
[322158402,1712857846961,-722.6,0.00030136,2]
[322158403,1712857846970,-592.59,0.00030136,2]
[322158404,1712857846979,-6453.07,0.00030136,2]
[322158405,1712857846988,-500.0,0.00030136,2]
[322158406,1712857846997,-500.0,0.00030136,2]
[322158407,1712857847006,-500.0,0.00030136,2]
[322158408,1712857847015,-500.0,0.00030136,2]
[322158409,1712857847026,-2780.98,0.00030136,2]
[322158410,1712857847035,-500.0,0.00030136,2]
[322158411,1712857847044,-500.0,0.00030136,2]
[322158412,1712857847053,-500.0,0.00030136,2]
[322158413,1712857847063,-500.0,0.00030136,2]
[322158414,1712857847072,-500.0,0.00030136,2]
[322158415,1712857847081,-509.85,0.00030136,2]
[322158416,1712857847090,-2115.82,0.00030136,2]
[322158417,1712857847100,-500.0,0.00030136,2]
[322158418,1712857847109,-633.09,0.00030136,2]
[322158419,1712857847119,-500.0,0.00030136,2]
[322158420,1712857847128,-1799.97,0.00030136,2]
[322158421,1712857847137,-2274.44,0.00030136,2]
[322158422,1712857847146,-500.0,0.00030136,2]
[322158423,1712857847155,-500.0,0.00030136,2]
[322158424,1712857847164,-500.0,0.00030136,2]
[322158425,1712857847174,-500.0,0.00030136,2]
[322158426,1712857847183,-2392.88,0.00030136,2]
[322158427,1712857847192,-204.744698,0.00030136,2]
[322158428,1712857847201,-4978.55,0.00030136,2]
[322158429,1712857847210,-1150.71,0.00030136,2]
[322158430,1712857847220,-500.0,0.00030136,2]
[322158431,1712857847229,-798.5,0.00030136,2]
[322158432,1712857847238,-37993.32,0.00030136,2]
[322158433,1712857847251,-500.0,0.00030136,2]
[322158434,1712857847260,-658.27,0.00030136,2]
[322158435,1712857847269,-500.0,0.00030136,2]
[322158436,1712857847278,-500.0,0.00030136,2]
[322158437,1712857847288,-500.0,0.00030136,2]
[322158438,1712857847297,-31367.75575564,0.00030136,2]
[322158439,1712857847330,-30497.68424436,0.00030136,2]
[322158440,1712857847339,-3614.78,0.00030136,2]
[322158441,1712857847349,-1353.64,0.00030136,2]
[322158442,1712857847358,-502.99666899,0.00030136,2]
[322158443,1712857847367,-500.0,0.00030136,2]
[322158444,1712857847378,-500.0,0.00030136,2]
[322158445,1712857847387,-500.0,0.00030136,2]
[322158446,1712857847396,-500.0,0.00030136,2]
[322158447,1712857847405,-5358.01,0.00030136,2]
[322158448,1712857847415,-657.41,0.00030136,2]
[322158449,1712857847424,-4819.05,0.00030136,2]
[322158450,1712857847433,-500.0,0.00030136,2]
[322158451,1712857847442,-365.1173045,0.00030136,2]
[322158452,1712857847451,-500.0,0.00030136,2]
[322158453,1712857847460,-76.35345575,0.00030136,2]
[322158454,1712857847472,-456.49654425,0.00030136,2]
[322158455,1712857847481,-1730.49,0.00030136,2]
[322158456,1712857847490,-500.0,0.00030136,2]
[322158457,1712857847498,-3518.79,0.00030136,2]
[322158458,1712857847507,-6525.91,0.00030136,2]
[322158459,1712857847517,-957.87,0.00030136,2]
[322158460,1712857847526,-638.21,0.00030136,2]
[322158461,1712857847535,-500.0,0.00030136,2]
[322158462,1712857847544,-603.26,0.00030136,2]
[322158463,1712857847553,-500.0,0.00030136,2]
[322158464,1712857847562,-855.44,0.00030136,2]
[322158465,1712857847571,-500.0,0.00030136,2]
[322158466,1712857847580,-500.0,0.00030136,2]
[322158467,1712857847589,-300.0,0.00030136,2]
[322158468,1712857847599,-8776.14,0.00030136,2]
[322158469,1712857847609,-500.0,0.00030136,2]
[322158470,1712857847618,-1519.35063285,0.00030136,2]
[322158471,1712857847630,-2249.30936715,0.00030136,2]
[322158472,1712857847640,-3461.6,0.00030136,2]
[322158473,1712857847649,-500.0,0.00030136,2]
[322158474,1712857847658,-506.78350663,0.00030136,2]
[322158475,1712857847668,-5044.64000191,0.00030136,2]
[322158476,1712857847760,-2608.13999809,0.00030136,2]
[322158477,1712857847771,-690.36,0.00030136,2]
[322158478,1712857847782,-500.0,0.00030136,2]
[322158479,1712857847791,-1070.03,0.00030136,2]
[322158480,1712857847801,-500.0,0.00030136,2]
[322158481,1712857847810,-861.11,0.00030136,2]
[322158482,1712857847820,-667.9,0.00030136,2]
[322158483,1712857847830,-1689.65,0.00030136,2]
[322158484,1712857847839,-183.80056722,0.00030136,2]
[322158485,1712857847849,-500.0,0.00030136,2]
[322158486,1712857847859,-3383.44,0.00030136,2]
[322158487,1712857847868,-12156.07,0.00030136,2]
[322158488,1712857847878,-2299.67,0.00030136,2]
[322158489,1712857847887,-3462.51,0.00030136,2]
[322158490,1712857847897,-900.29,0.00030136,2]
[322158491,1712857847906,-500.0,0.00030136,2]
[322158492,1712857847915,-1741.74,0.00030136,2]
[322158493,1712857847924,-500.0,0.00030136,2]
[322158494,1712857847933,-2249.67,0.00030136,2]
[322158495,1712857847943,-184.52,0.00030136,2]
[322158496,1712857847953,-3765.87,0.00030136,2]
[322158497,1712857847963,-746.11,0.00030136,2]
[322158498,1712857847973,-2628.33,0.00030136,2]
[322158499,1712857847983,-613.12,0.00030136,2]
[322158500,1712857847993,-500.0,0.00030136,2]
[322158501,1712857848004,-500.0,0.00030136,2]
[322158502,1712857848015,-10440.34,0.00030136,2]
[322158503,1712857848024,-1373.97,0.00030136,2]
[322158504,1712857848035,-216.89678797,0.00030136,2]
[322158505,1712857848045,-500.0,0.00030136,2]
[322158506,1712857848054,-228.42823146,0.00030136,2]
[322158507,1712857848065,-1767.28,0.00030136,2]
[322158508,1712857848075,-2050.42,0.00030136,2]
[322158509,1712857848087,-500.0,0.00030136,2]
[322158510,1712857848097,-751.95,0.00030136,2]
[322158511,1712857848106,-500.0,0.00030136,2]
[322158512,1712857848115,-2620.36,0.00030136,2]
[322158513,1712857848125,-1153.8,0.00030136,2]
[322158514,1712857848135,-1158.69,0.00030136,2]
[322158515,1712857848144,-735.94,0.00030136,2]
[322158516,1712857848153,-19799.79526205,0.00030136,2]
[322158517,1712857849449,-484.23808323,0.00030136,2]
[322158518,1712857849461,-314.60205153,0.00030136,2]
[322158519,1712857849569,-1200.77579899,0.00030136,2]
[322158520,1712857849598,-1707.9688042,0.00030136,2]
[322158521,1712857849612,-3052.9411958,0.00030136,2]
[322158522,1712857849624,-586.10307982,0.00030136,2]
[322158523,1712857849635,-524.38060016,0.00030136,2]
[322158524,1712857849648,-548.56690067,0.00030136,2]
[322158525,1712857849669,-1566.86822355,0.00030136,2]
[322158526,1712857849678,-500.0,0.00030136,2]
[322158527,1712857849688,-646.91099354,0.00030136,2]
[322158528,1712857849697,-574.47,0.00030136,2]
[322158529,1712857849707,-200.49609159,0.00030136,2]
[322158530,1712857849720,-382.72,0.00030136,2]
[322158531,1712857850597,-155.0,0.0002872,2]
[322158532,1712857850609,-1343.76907501,0.00030136,2]
[322158533,1712857850624,-247.1548334,0.00030136,2]
[322158534,1712857850633,-500.0,0.00030136,2]
[322158535,1712857850642,-3724.68,0.00030136,2]
[322158536,1712857850651,-500.0,0.00030136,2]
[322158537,1712857850660,-500.0,0.00030136,2]
[322158538,1712857850670,-500.0,0.00030136,2]
[322158539,1712857850679,-500.0,0.00030136,2]
[322158540,1712857850688,-500.0,0.00030136,2]
[322158541,1712857850698,-257.95344565,0.00030136,2]
[322158542,1712857850707,-500.0,0.00030136,2]
[322158543,1712857850717,-500.0,0.00030136,2]
[322158544,1712857850726,-500.0,0.00030136,2]
[322158545,1712857850736,-1188.84,0.00030136,2]
[322158546,1712857850745,-500.0,0.00030136,2]
[322158547,1712857850754,-511.0,0.00030137,2]
[322158548,1712857850764,-14474.4133751,0.0003014,2]
[322158549,1712857850775,-167.33,0.00030167,2]
[322158550,1712857850786,-804.04274286,0.00030173,2]
[322158551,1712857850795,-565.98696312,0.00030203,2]
[322158552,1712857850807,-2488.81490141,0.00030203,2]
[322158553,1712857850920,-5245.40793334,0.00030203,2]
[322158554,1712857850929,-181.27,0.00030266,2]
[322158555,1712857850938,-1704.13791274,0.00030269,5]
[322158556,1712857850948,-804.04274286,0.0003031,2]
[322158557,1712857850958,-203.80419358,0.0003031,2]
[322158558,1712857850967,-529.37452589,0.0003031,2]
[322158559,1712857850977,-912.62936157,0.0003031,2]
[322158560,1712857850986,-14474.4133751,0.00030345,2]
[322158561,1712857850995,-8300.20979787,0.0003037,2]
[322158562,1712857851005,-151.6,0.0003038,15]
[322158563,1712857851014,-153.36,0.0003038,15]
[322158564,1712857851024,-155.0,0.0003038,15]
[322158565,1712857851034,-150.5,0.0003039,15]
[322158566,1712857851043,-150.5,0.0003039,15]
[322158567,1712857851052,-151.2,0.0003039,15]
[322158568,1712857851061,-155.0,0.0003039,15]
[322158569,1712857851070,-150.5,0.000304,15]
[322158570,1712857851079,-152.07,0.000304,15]
[322158571,1712857851090,-151.42,0.000304,15]
[322158572,1712857851101,-151.06,0.000304,15]
[322158573,1712857851110,-150.5,0.000304,15]
[322158574,1712857851120,-150.5,0.000304,15]
[322158575,1712857851129,-56.63315705,0.000304,15]
[322158576,1712857851142,-98.36684295,0.000304,15]
[322158577,1712857851151,-500.0,0.00030408,2]
[322158578,1712857851161,-919.73,0.00030408,2]
[322158579,1712857851170,-500.0,0.00030408,2]
[322158580,1712857851179,-500.0,0.00030408,2]
[322158581,1712857851188,-919.73,0.00030409,2]
[322158582,1712857851198,-919.73,0.00030409,2]
[322158583,1712857851207,-1470.63,0.00030409,2]
[322158584,1712857851216,-1470.63,0.00030409,2]
[322158585,1712857851225,-1470.63,0.00030409,2]
[322158586,1712857851234,-1470.63,0.00030409,2]
[322158587,1712857851244,-1470.63,0.00030409,2]
[322158588,1712857851253,-1470.63,0.00030409,2]
[322158589,1712857851263,-182.14551113,0.00030409,2]
[322158590,1712857851272,-351.54247633,0.0003041,7]
[322158591,1712857851288,-1440.382452,0.0003041,7]
[322158592,1712857851300,-3339.60890479,0.0003041,7]
[322158593,1712857851398,-6854.67936,0.0003041,7]
[322158594,1712857851931,-223.88,0.00030126,3]
[322158595,1712857851942,-355.9789166,0.00030135,4]
[322158596,1712857851951,-2344.21799969,0.00030135,5]
[322158597,1712857851961,-532.56,0.00030136,2]
[322158598,1712857851971,-500.0,0.00030136,2]
[322158599,1712857851982,-515.70703883,0.00030136,2]
[322158600,1712857851991,-234.73982916,0.0003041,7]
[322158601,1712857870101,12554.9244,0.00020491,2]
[322158602,1712857932462,-29900.0,0.00020511,2]
[322158603,1712857939679,-443.47024588,0.0002051,2]
[322158604,1712857939702,-407.68293675,0.0002051,2]
[322158605,1712857939725,-7968.6026102,0.00020511,2]
[322158606,1712857950617,906.26877151,0.00015,2]
[322158607,1712857978935,2993.73122849,0.000208,2]
[322158608,1712857984990,1080.24420717,0.000189,2]
[322158609,1712857985016,9248.43867971,0.000189,2]
[322158610,1712857996314,205.0,9.8e-05,2]
[322158611,1712858000530,242.03839148,0.000101,2]
[322158613,1712858057908,500.0,0.0002,2]
[322158614,1712858072330,450.80369152,0.00018,2]
[322158615,1712858093009,153.53,0.00025067,120]
[322158616,1712858124815,163.86278893,0.00020598,2]
[322158617,1712858162500,-237.08589627,0.00020647,2]
[322158618,1712858162524,-163.86278893,0.00020648,2]
[322158619,1712858162546,-1744.76796834,0.00020694,2]
[322158620,1712858162570,-264.95002221,0.00020694,2]
[322158621,1712858162593,-199.93044363,0.00020695,2]
[322158622,1712858162626,-809.66168614,0.00020695,2]
[322158623,1712858162653,-5579.74119448,0.00020698,2]
[322158624,1712858169812,-4552.34816809,0.00020698,2]
[322158625,1712858169838,-163.86278893,0.00020698,2]
[322158626,1712858169868,-152.77070344,0.00020698,2]
[322158627,1712858169891,-321.61709716,0.00020699,2]
[322158628,1712858174239,317.9576216,0.00020698,2]
[322158629,1712858180753,1781.69195409,0.00015597,2]
[322158630,1712858227526,1709.75166669,0.00020698,2]
[322158631,1712858227559,6373.03911126,0.00020698,2]
[322158632,1712858250090,2626.96088874,0.00020698,2]
[322158633,1712858327893,155.0,0.00020588,2]
[322158634,1712858329867,3647.85020423,0.0002,2]
[322158635,1712858344441,1008.0,0.00022704,15]
[322158636,1712858345008,1008.0,0.00022694,15]
[322158637,1712858345246,662.0,0.00022704,15]
[322158638,1712858345491,1008.0,0.00022684,15]
[322158639,1712858345774,662.0,0.00022694,15]
[322158640,1712858346294,662.0,0.00022684,15]
[322158641,1712858418832,3956.9264,0.00023068,10]
[322158642,1712858439272,3160.37671597,0.00019756,2]
[322158643,1712858439451,168.18,0.00018678,2]
[322158644,1712858457819,1892.50795994,0.00019756,2]
[322158645,1712858466104,464.0,0.00022704,15]
[322158646,1712858466580,464.0,0.00022694,15]
[322158647,1712858467297,464.0,0.00022684,15]
[322158648,1712858530416,-264.95002221,0.00020695,2]
[322158649,1712858530439,-1500.0,0.00020695,2]
[322158650,1712858530462,-1235.04997779,0.00020696,2]
[322158651,1712858531314,-545.2496673,0.00020696,2]
[322158652,1712858531338,-1780.29964509,0.00020696,2]
[322158653,1712858531364,-448.03687074,0.00020698,2]
[322158654,1712858531386,-226.41381687,0.00020698,2]
[322158655,1712858538771,-89.41280538,0.00020698,2]
[322158656,1712858552084,2910.58719462,0.00020698,2]
[322158657,1712858559773,-3000.0,0.00020698,2]
[322158658,1712858560187,-3000.0,0.00020698,2]
[322158659,1712858561846,-3000.0,0.00020698,2]
[322158660,1712858562388,-3000.0,0.00020698,2]
[322158661,1712858562943,-3000.0,0.00020698,2]
[322158662,1712858563525,-3000.0,0.00020698,2]
[322158663,1712858563795,-3000.0,0.00020698,2]
[322158664,1712858564211,-3000.0,0.00020698,2]
[322158665,1712858564651,-142.41091628,0.00020698,2]
[322158666,1712858564673,-152.09777082,0.00020698,2]
[322158667,1712858569770,2705.4913129,0.00020697,2]
[322158668,1712858569795,1694.08917483,0.00020697,2]
[322158669,1712858584608,150.5,0.0002192,15]
[322158670,1712858584925,324.0,0.0002192,15]
[322158671,1712858585100,150.5,0.0002191,15]
[322158672,1712858585424,324.0,0.0002191,15]
[322158673,1712858585553,150.5,0.000219,15]
[322158674,1712858585881,324.0,0.000219,15]
[322158675,1712858586431,706.0,0.0002192,15]
[322158676,1712858587007,706.0,0.0002191,15]
[322158677,1712858587462,706.0,0.000219,15]
[322158678,1712858595606,1305.91082517,0.00020698,2]
[322158679,1712858595630,3000.0,0.00020698,2]
[322158680,1712858605976,-3000.0,0.00020698,2]
[322158681,1712858606473,-1505.15288271,0.00020698,2]
[322158682,1712858642110,1494.84711729,0.00020683,2]
[322158683,1712858642137,22.67696971,0.00020683,2]
[322158684,1712858642915,2977.32303029,0.00020698,2]
[322158685,1712858647958,-3000.0,0.00020698,2]
[322158686,1712858648540,-3000.0,0.00020698,2]
[322158687,1712858649173,-1158.23157728,0.00020698,2]
[322158688,1712858649196,-864.44539243,0.00020698,2]
[322158689,1712858705369,316.59652995,0.00020698,2]
[322158690,1712858705686,227.0,0.0002192,15]
[322158691,1712858706165,227.0,0.0002191,15]
[322158692,1712858706638,227.0,0.000219,15]
[322158693,1712858778202,250.0,0.00020639,2]
[322158694,1712858808642,160.53,0.00020621,2]
[322158695,1712858824860,159.0,0.0002079,15]
[322158696,1712858825105,494.0,0.0002079,15]
[322158697,1712858825370,159.0,0.0002078,15]
[322158698,1712858825586,494.0,0.0002078,15]
[322158699,1712858825905,159.0,0.0002077,15]
[322158700,1712858826089,494.0,0.0002077,15]
[322158702,1712858837258,250.19650034,0.0002023,2]
[322158703,1712858837282,227.46349966,0.0002023,2]
[322158704,1712858849873,493.89,0.00020548,2]
[322158705,1712858851883,1000.0,0.00020698,2]
[322158706,1712858855523,264.95002221,0.00020698,2]
[322158707,1712858866005,1013.69647813,0.0002007,2]